fUSD/lending_fUSD_20250117
["ID","MTS","AMOUNT","RATE_DAILY","PERIOD"]
[349300145,1737106259413,-2927.14524389,0.00027209,2]
[349300146,1737106259423,-3246.75255768,0.00027209,2]
[349300147,1737106259432,-339.46550561,0.0002721,2]
[349300148,1737106259442,-21127.77072025,0.0002721,2]
[349300149,1737106259452,-430.63803471,0.00027211,2]
[349300150,1737106259461,-668.29559364,0.00027213,2]
[349300151,1737106259470,-1787.96445075,0.00027213,2]
[349300152,1737106259480,-200.0,0.00027214,2]
[349300153,1737106259490,-200.0,0.00027215,2]
[349300154,1737106259499,-623.40036655,0.00027216,2]
[349300155,1737106259509,-8278.11123845,0.00027217,2]
[349300156,1737106259519,-668.29559364,0.00027217,2]
[349300157,1737106259528,-21127.77072025,0.00027217,2]
[349300158,1737106259538,-3246.75255768,0.00027219,2]
[349300159,1737106259547,-200.0,0.00027219,2]
[349300160,1737106259558,-623.40036655,0.0002722,2]
[349300161,1737106259568,-1787.96445075,0.0002722,2]
[349300162,1737106259578,-2691.81768451,0.00027221,2]
[349300163,1737106259588,-21127.77072025,0.00027222,2]
[349300164,1737106259599,-200.0,0.00027223,2]
[349300165,1737106259609,-430.63803471,0.00027225,2]
[349300166,1737106259619,-9517.16197875,0.00027225,2]
[349300167,1737106259630,-330.09903553,0.00027228,2]
[349300168,1737106259640,-366.7606102,0.00027229,2]
[349300169,1737106259654,-330.53748041,0.00027232,2]
[349300170,1737106259664,-2927.14524389,0.00027232,2]
[349300171,1737106259674,-9517.16197875,0.00027233,2]
[349300172,1737106259684,-668.29559364,0.00027234,2]
[349300173,1737106259693,-223.08651776,0.00027236,2]
[349300174,1737106259703,-430.63803471,0.00027237,2]
[349300175,1737106259713,-623.40036655,0.00027238,2]
[349300176,1737106259723,-202.0,0.0002724,2]
[349300177,1737106259733,-205.0,0.0002724,2]
[349300178,1737106259746,-221.0,0.0002724,2]
[349300179,1737106259756,-160067.44434628,0.00027241,2]
[349300180,1737106259766,-9517.16197875,0.00027242,2]
[349300181,1737106259776,-339.46550561,0.00027242,2]
[349300182,1737106259787,-9517.16197875,0.00027243,2]
[349300183,1737106259797,-223.08651776,0.00027244,2]
[349300184,1737106259807,-200.0,0.00027247,2]
[349300185,1737106259817,-3246.75255768,0.00027247,2]
[349300186,1737106259827,-339.46550561,0.00027248,2]
[349300187,1737106259837,-339.46550561,0.00027248,2]
[349300188,1737106259847,-668.29559364,0.00027248,2]
[349300189,1737106259856,-200.0,0.00027249,2]
[349300190,1737106259866,-330.53748041,0.00027251,2]
[349300191,1737106259876,-1932.08337643,0.00027252,2]
[349300192,1737106259886,-2927.14524389,0.00027253,2]
[349300193,1737106259897,-9517.16197875,0.00027253,2]
[349300194,1737106259907,-1787.96445075,0.00027254,2]
[349300195,1737106259917,-223.08651776,0.00027255,2]
[349300196,1737106259927,-3246.75255768,0.00027257,2]
[349300197,1737106259937,-1507.53352727,0.00027259,2]
[349300198,1737106259947,-330.53748041,0.0002726,2]
[349300199,1737106259958,-623.40036655,0.0002726,2]
[349300200,1737106259968,-772.46,0.0002726,2]
[349300201,1737106259978,-772.46,0.0002726,2]
[349300202,1737106259987,-772.56,0.0002726,2]
[349300203,1737106259997,-772.56,0.0002726,2]
[349300204,1737106260007,-776.86,0.0002726,2]
[349300205,1737106260018,-430.63803471,0.00027261,2]
[349300206,1737106260029,-1932.08337643,0.00027261,2]
[349300207,1737106260039,-8278.11123845,0.00027262,2]
[349300208,1737106260049,-330.09903553,0.00027262,2]
[349300209,1737106260059,-366.7606102,0.00027262,2]
[349300210,1737106260069,-1507.53352727,0.00027262,2]
[349300211,1737106260227,-223.08651776,0.00027263,2]
[349300212,1737106260238,-200.0,0.00027263,2]
[349300213,1737106260248,-1787.96445075,0.00027263,2]
[349300214,1737106260258,-200.0,0.00027263,2]
[349300215,1737106260268,-3246.75255768,0.00027264,2]
[349300216,1737106260278,-623.40036655,0.00027265,2]
[349300217,1737106260288,-330.09903553,0.00027267,2]
[349300218,1737106260298,-223.08651776,0.00027267,2]
[349300219,1737106260307,-3246.75255768,0.00027268,2]
[349300220,1737106260318,-1932.08337643,0.0002727,2]
[349300221,1737106260328,-1932.08337643,0.0002727,2]
[349300222,1737106260338,-1507.53352727,0.00027272,2]
[349300223,1737106260348,-908.39161139,0.00027272,2]
[349300224,1737106260358,-908.39161139,0.00027273,2]
[349300225,1737106260368,-1507.53352727,0.00027273,2]
[349300226,1737106260378,-3246.75255768,0.00027273,2]
[349300227,1737106260388,-1787.96445075,0.00027275,2]
[349300228,1737106260401,-668.29559364,0.00027275,2]
[349300229,1737106260410,-2927.14524389,0.00027276,2]
[349300230,1737106260419,-330.53748041,0.00027279,2]
[349300231,1737106260429,-9517.16197875,0.00027279,2]
[349300232,1737106260439,-223.08651776,0.0002728,2]
[349300233,1737106260448,-908.39161139,0.00027281,2]
[349300234,1737106260458,-200.0,0.00027283,2]
[349300235,1737106260468,-1932.08337643,0.00027283,2]
[349300236,1737106260478,-668.29559364,0.00027284,2]
[349300237,1737106260487,-223.08651776,0.00027286,2]
[349300238,1737106260498,-366.7606102,0.00027287,2]
[349300239,1737106260508,-223.08651776,0.00027287,2]
[349300240,1737106260518,-200.0,0.00027287,2]
[349300241,1737106260528,-1507.53352727,0.00027288,2]
[349300242,1737106260537,-160067.44434628,0.00027289,2]
[349300243,1737106260547,-2691.81768451,0.00027291,2]
[349300244,1737106260557,-8278.11123845,0.00027292,2]
[349300245,1737106260567,-366.7606102,0.00027294,2]
[349300246,1737106260577,-200.0,0.00027295,2]
[349300247,1737106260587,-9517.16197875,0.00027296,2]
[349300248,1737106260596,-1932.08337643,0.00027297,2]
[349300249,1737106260607,-200.0,0.00027297,2]
[349300250,1737106260616,-200.0,0.00027298,2]
[349300251,1737106260626,-1787.96445075,0.00027299,2]
[349300252,1737106260636,-908.39161139,0.000273,2]
[349300253,1737106260647,-366.7606102,0.00027301,2]
[349300254,1737106260657,-200.0,0.00027305,2]
[349300255,1737106260667,-200.0,0.00027309,2]
[349300256,1737106260676,-2691.81768451,0.0002731,2]
[349300257,1737106260686,-21127.77072025,0.00027313,2]
[349300258,1737106260696,-908.39161139,0.00027313,2]
[349300259,1737106260705,-366.7606102,0.00027314,2]
[349300260,1737106260715,-668.29559364,0.00027315,2]
[349300261,1737106260724,-330.53748041,0.00027318,2]
[349300262,1737106260734,-430.63803471,0.00027318,2]
[349300263,1737106260745,-3246.75255768,0.00027321,2]
[349300264,1737106260755,-2691.81768451,0.00027322,2]
[349300265,1737106260765,-1932.08337643,0.00027322,2]
[349300266,1737106260775,-200.0,0.00027325,2]
[349300267,1737106260785,-2927.14524389,0.00027326,2]
[349300268,1737106260795,-160067.44434628,0.0002733,2]
[349300269,1737106260805,-330.09903553,0.0002733,2]
[349300270,1737106260814,-200.0,0.00027332,2]
[349300271,1737106260825,-160067.44434628,0.00027336,2]
[349300272,1737106260834,-1787.96445075,0.00027338,2]
[349300273,1737106260844,-160067.44434628,0.00027341,2]
[349300274,1737106260854,-8278.11123845,0.00027343,2]
[349300275,1737106260863,-200.0,0.00027345,2]
[349300276,1737106260872,-21127.77072025,0.00027346,2]
[349300277,1737106260881,-2691.81768451,0.00027347,2]
[349300278,1737106260890,-2691.81768451,0.0002735,2]
[349300279,1737106260906,-339.46550561,0.00027351,2]
[349300280,1737106260915,-200.0,0.00027354,2]
[349300281,1737106260925,-200.0,0.00027354,2]
[349300282,1737106260934,-200.0,0.00027354,2]
[349300283,1737106260944,-668.29559364,0.00027356,2]
[349300284,1737106260954,-330.53748041,0.00027357,2]
[349300285,1737106260964,-330.09903553,0.00027358,2]
[349300286,1737106260974,-200.0,0.00027358,2]
[349300287,1737106260984,-200.0,0.00027358,2]
[349300288,1737106260994,-330.53748041,0.00027359,2]
[349300289,1737106261004,-200.0,0.0002736,2]
[349300290,1737106261014,-339.46550561,0.00027362,2]
[349300291,1737106261024,-9517.16197875,0.00027367,2]
[349300292,1737106261033,-430.63803471,0.00027367,2]
[349300293,1737106261043,-200.0,0.00027368,2]
[349300294,1737106261053,-330.09903553,0.0002737,2]
[349300295,1737106261063,-200.0,0.0002737,2]
[349300296,1737106261073,-160067.44434628,0.00027372,2]
[349300297,1737106261083,-2927.14524389,0.00027376,2]
[349300298,1737106261093,-330.53748041,0.00027376,2]
[349300299,1737106261103,-160067.44434628,0.00027376,2]
[349300300,1737106261113,-200.0,0.00027376,2]
[349300301,1737106261123,-430.63803471,0.00027377,2]
[349300302,1737106261133,-623.40036655,0.00027378,2]
[349300303,1737106261145,-200.0,0.0002738,21]
[349300304,1737106261156,-21127.77072025,0.0002738,2]
[349300305,1737106261165,-200.0,0.00027381,2]
[349300306,1737106261176,-1507.53352727,0.00027382,2]
[349300307,1737106261185,-200.0,0.00027382,2]
[349300308,1737106261195,-339.46550561,0.00027384,2]
[349300309,1737106261206,-200.0,0.00027387,2]
[349300310,1737106261217,-366.7606102,0.00027389,2]
[349300311,1737106261227,-500.0,0.00027389,2]
[349300312,1737106261239,-500.0,0.00027389,2]
[349300313,1737106261248,-500.0,0.00027389,2]
[349300314,1737106261259,-500.0,0.00027389,2]
[349300315,1737106261268,-500.0,0.00027389,2]
[349300316,1737106261278,-500.0,0.00027389,2]
[349300317,1737106261288,-487.09,0.00027389,2]
[349300318,1737106261298,-500.0,0.00027389,2]
[349300319,1737106261307,-500.0,0.00027389,2]
[349300320,1737106261317,-500.0,0.00027389,2]
[349300321,1737106261326,-500.0,0.00027389,2]
[349300322,1737106261336,-500.0,0.00027389,2]
[349300323,1737106261345,-41578.02367924,0.00027389,2]
[349300324,1737106261407,-9202.00920001,0.00027389,2]
[349300325,1737106261419,-553.048821,0.00027389,2]
[349300326,1737106261431,-31408.84759222,0.00027389,2]
[349300327,1737106261443,-1649.538,0.00027389,2]
[349300328,1737106261455,-1206.84438215,0.00027389,2]
[349300329,1737106261467,-278.20000002,0.00027389,2]
[349300330,1737106261479,-46798.33787128,0.00027389,2]
[349300331,1737106261495,-802.66496489,0.00027389,2]
[349300332,1737106261507,-632.27300002,0.00027389,2]
[349300333,1737106261519,-425.1582348,0.00027389,2]
[349300334,1737106261535,-500.0,0.00024998,2]
[349300335,1737106261544,-1740.91721747,0.00027389,2]
[349300336,1737106261556,-722.19529931,0.00027389,2]
[349300337,1737106261567,-856.2799995,0.00027389,2]
[349300338,1737106261582,-18657.34794376,0.00027389,2]
[349300339,1737106261594,-2857.26062109,0.00027389,2]
[349300340,1737106261609,-500.0,0.00024899,2]
[349300341,1737106261619,-1656.03251395,0.00027389,2]
[349300342,1737106261630,-15964.01342179,0.00027389,2]
[349300343,1737106261642,-14091.0072375,0.00027389,2]
[349300344,1737106261656,-1835.0,0.00027389,2]
[349300345,1737106261666,-8278.11123845,0.00027391,2]
[349300346,1737106261676,-200.0,0.00027392,2]
[349300347,1737106261685,-330.09903553,0.00027394,2]
[349300348,1737106261695,-200.0,0.00027394,2]
[349300349,1737106261704,-341.353396,0.00027396,2]
[349300350,1737106261714,-255.413782,0.00027396,2]
[349300351,1737106261724,-500.0,0.00027396,2]
[349300352,1737106261733,-1507.53352727,0.00027397,2]
[349300353,1737106261744,-500.0,0.00027397,30]
[349300354,1737106261755,-500.0,0.00027397,30]
[349300355,1737106261765,-2000.0,0.00027397,30]
[349300356,1737106261775,-151.0,0.00027397,7]
[349300357,1737106261785,-151.0,0.00027397,7]
[349300358,1737106261795,-151.0,0.00027397,7]
[349300359,1737106261804,-150.0,0.00027397,30]
[349300360,1737106261814,-200.0,0.00027397,2]
[349300361,1737106261824,-178.89,0.00027397,2]
[349300362,1737106261833,-755.22,0.00027397,10]
[349300363,1737106261843,-1443.75,0.00027397,2]
[349300364,1737106261853,-999.99,0.00027397,2]
[349300365,1737106261863,-9096.17,0.00027397,2]
[349300366,1737106261872,-299.99,0.00027397,12]
[349300367,1737106261882,-4773.3,0.00027397,2]
[349300368,1737106261891,-1087.03,0.00027397,2]
[349300369,1737106261906,-150.99,0.00027397,2]
[349300370,1737106261916,-623.40036655,0.000274,2]
[349300371,1737106261925,-1000.0,0.00027421,5]
[349300372,1737106261935,-204.0,0.0002744,2]
[349300373,1737106261945,-320.66,0.00027514,2]
[349300374,1737106261954,-150.0,0.00027534,30]
[349300375,1737106261964,-500.0,0.0002756,2]
[349300376,1737106261973,-500.0,0.0002756,2]
[349300377,1737106261983,-500.0,0.0002756,2]
[349300378,1737106261992,-1058.0,0.00027561,5]
[349300379,1737106262002,-2000.0,0.00027671,30]
[349300380,1737106262011,-216.47132737,0.00027671,30]
[349300381,1737106262021,-1660.64,0.00027868,2]
[349300382,1737106262031,-500.0,0.00027868,2]
[349300383,1737106262040,-500.0,0.00027868,2]
[349300384,1737106262049,-375.0,0.00027869,5]
[349300385,1737106262058,-614.0,0.00027869,5]
[349300386,1737106262068,-173.88482316,0.00027899,2]
[349300387,1737106262077,-202.0,0.0002794,30]
[349300388,1737106262087,-205.0,0.0002794,30]
[349300389,1737106262097,-205.0,0.0002794,2]
[349300390,1737106262106,-221.0,0.0002794,30]
[349300391,1737106262116,-2000.0,0.00027945,30]
[349300392,1737106262125,-242.92,0.00027945,2]
[349300393,1737106262135,-150.00000125,0.00028,60]
[349300394,1737106262147,-500.0,0.00028012,120]
[349300395,1737106262157,-500.0,0.00028012,120]
[349300396,1737106262167,-500.0,0.00028012,120]
[349300397,1737106262177,-200.0,0.00028012,120]
[349300398,1737106262186,-201.26,0.00028019,3]
[349300399,1737106262195,-500.0,0.0002811,2]
[349300400,1737106262207,-204.0,0.0002811,2]
[349300401,1737106262216,-2000.0,0.00028219,30]
[349300402,1737106262226,-437.39,0.00028219,2]
[349300403,1737106262235,-696.39,0.00028219,2]
[349300404,1737106262244,-437.34,0.00028219,2]
[349300405,1737106262253,-437.34,0.00028219,2]
[349300406,1737106262263,-437.34,0.00028219,2]
[349300407,1737106262272,-150.0,0.00028219,2]
[349300408,1737106262282,-150.0,0.00028219,2]
[349300409,1737106262291,-150.0,0.00028219,2]
[349300410,1737106262300,-150.0,0.00028219,2]
[349300411,1737106262309,-150.0,0.00028287,120]
[349300412,1737106262320,-2278.13806,0.0002837,2]
[349300413,1737106262329,-162.150273,0.00028399,2]
[349300414,1737106262339,-1500.0,0.00028422,5]
[349300415,1737106262348,-2000.0,0.00028493,30]
[349300416,1737106262356,-202.0,0.0002864,30]
[349300417,1737106262366,-205.0,0.0002864,30]
[349300418,1737106262375,-205.0,0.0002864,2]
[349300419,1737106262384,-221.0,0.0002864,30]
[349300420,1737106262396,-169.99,0.00028675,2]
[349300421,1737106262406,-152.77120717,0.00028713,2]
[349300422,1737106262415,-500.0,0.00028713,2]
[349300423,1737106262425,-500.0,0.00028713,2]
[349300424,1737106262434,-1862.0,0.00028714,2]
[349300425,1737106262444,-907.0,0.00028714,2]
[349300426,1737106262453,-2945.0,0.00028714,2]
[349300427,1737106262463,-1260.0,0.00028714,2]
[349300428,1737106262473,-820.0,0.00028714,2]
[349300429,1737106262482,-537.0,0.00028714,2]
[349300430,1737106262491,-3981.0,0.00028714,2]
[349300431,1737106262500,-1105.0,0.00028714,2]
[349300432,1737106262508,-3899.0,0.00028714,2]
[349300433,1737106262626,-2017.0,0.00028714,2]
[349300434,1737106262637,-1268.0,0.00028714,2]
[349300435,1737106262650,-150.0,0.00028714,2]
[349300436,1737106262660,-150.0,0.00028714,2]
[349300437,1737106262670,-2000.0,0.00028767,30]
[349300438,1737106262679,-204.0,0.0002878,2]
[349300439,1737106262689,-600.0,0.0002878,7]
[349300440,1737106262699,-6000.0,0.0002878,7]
[349300441,1737106262708,-2200.0,0.0002878,7]
[349300442,1737106262718,-763.8,0.00028958,2]
[349300443,1737106262728,-508.01168901,0.00028999,2]
[349300444,1737106262739,-351.5074725,0.00028999,2]
[349300445,1737106262751,-500.0,0.00028999,2]
[349300446,1737106262761,-15467.69802768,0.00029,5]
[349300447,1737106262771,-600.0,0.00029,2]
[349300448,1737106262780,-1058.0,0.00029012,5]
[349300449,1737106262791,-2000.0,0.00029041,30]
[349300450,1737106262801,-150.0,0.00029041,2]
[349300451,1737106262810,-150.0,0.00029041,2]
[349300452,1737106262821,-150.0,0.00029041,2]
[349300453,1737106262831,-150.0,0.00029041,2]
[349300454,1737106262841,-150.0,0.00029041,2]
[349300455,1737106262850,-162.150273,0.00029109,2]
[349300456,1737106262860,-633.0,0.00029178,2]
[349300457,1737106262869,-876.09,0.00029178,2]
[349300458,1737106262878,-150.0,0.00029214,2]
[349300459,1737106262887,-150.0,0.00029214,2]
[349300460,1737106262897,-150.0,0.00029214,2]
[349300461,1737106262906,-150.0,0.00029214,2]
[349300462,1737106262916,-150.0,0.00029214,2]
[349300463,1737106262925,-150.0,0.00029214,2]
[349300464,1737106262935,-150.0,0.00029214,2]
[349300465,1737106262944,-3000.0,0.00029292,120]
[349300466,1737106262954,-2000.0,0.00029315,30]
[349300467,1737106262964,-202.0,0.0002934,30]
[349300468,1737106262974,-205.0,0.0002934,30]
[349300469,1737106262984,-205.0,0.0002934,2]
[349300470,1737106262993,-221.0,0.0002934,30]
[349300471,1737106263003,-204.0,0.0002946,2]
[349300472,1737106263013,-200.0,0.0002946,2]
[349300473,1737106263023,-2000.0,0.000295,15]
[349300474,1737106263033,-2000.0,0.00029589,30]
[349300475,1737106263043,-500.0,0.00029599,2]
[349300476,1737106263053,-500.0,0.00029599,2]
[349300477,1737106263065,-500.0,0.00029599,2]
[349300478,1737106263075,-500.0,0.00029599,2]
[349300479,1737106263085,-500.0,0.00029599,2]
[349300480,1737106263095,-531.5,0.00029599,2]
[349300481,1737106263104,-500.0,0.00029599,2]
[349300482,1737106263114,-1054.4402,0.000296,15]
[349300483,1737106263124,-33.21626928,0.000296,10]
[349300484,1737106263266,-500.0,0.00024998,2]
[349300485,1737106263277,-23.904,0.000296,10]
[349300486,1737106263289,-4942.87973072,0.000296,10]
[349300487,1737106263300,-829.66,0.00029602,120]
[349300488,1737106263309,-600.0,0.00029602,7]
[349300489,1737106263320,-1356.93707971,0.00029602,7]
[349300490,1737106263331,-1808.27066652,0.00029602,7]
[349300491,1737106263343,-1787.55805162,0.00029602,7]
[349300492,1737106263355,-674.463281,0.00029602,7]
[349300493,1737106263368,-372.77092115,0.00029602,7]
[349300494,1737106263377,-1311.07907885,0.00029602,7]
[349300495,1737106263508,-500.0,0.00024899,2]
[349300496,1737106263519,-500.0,0.00024997,2]
[349300497,1737106263529,-132.58449139,0.00024997,2]
[349300498,1737106263541,-367.41550861,0.00024997,2]
[349300499,1737106263550,-500.0,0.00024997,2]
[349300500,1737106263561,-500.0,0.00024998,2]
[349300501,1737106263571,-500.0,0.00024999,2]
[349300502,1737106263581,-500.0,0.00024999,2]
[349300503,1737106263592,-1174.0,0.00025714,2]
[349300504,1737106263601,-1174.0,0.00028714,2]
[349300505,1737106263611,-888.92092115,0.00029602,7]
[349300506,1737106263621,-500.0,0.00029605,120]
[349300507,1737106263630,-2278.13806,0.0002962,2]
[349300508,1737106263640,-1000.0,0.00029637,2]
[349300509,1737106263653,-500.0,0.00029672,120]
[349300510,1737106263663,-200.0,0.00029705,120]
[349300511,1737106263674,-150.0,0.00029724,120]
[349300512,1737106263683,-162.150273,0.00029819,2]
[349300513,1737106263693,-2000.0,0.00029863,30]
[349300514,1737106263703,-151.0,0.00029863,7]
[349300515,1737106263713,-151.0,0.00029863,7]
[349300516,1737106263722,-150.0,0.00029863,2]
[349300517,1737106263732,-150.0,0.00029863,2]
[349300518,1737106263742,-161.931,0.0002989,120]
[349300519,1737106263756,-1000.46558935,0.00029974,3]
[349300520,1737106263766,-1660.64,0.00029999,2]
[349300521,1737106263776,-500.0,0.00029999,2]
[349300522,1737106263786,-500.0,0.00029999,2]
[349300523,1737106263796,-758.37647367,0.0003,120]
[349300524,1737106263805,-151.0,0.0003,120]
[349300525,1737106263815,-151.0,0.0003,120]
[349300526,1737106263825,-25339.91730582,0.0003,120]
[349300527,1737106263838,-1492.6196976,0.0003,120]
[349300528,1737106263857,-11181.12547263,0.0003,120]
[349300529,1737106263867,-151.0,0.0003,7]
[349300530,1737106263877,-500.0,0.0003,2]
[349300531,1737106263887,-500.0,0.0003,2]
[349300532,1737106263897,-500.0,0.0003,2]
[349300533,1737106263906,-500.0,0.0003,2]
[349300534,1737106263916,-500.0,0.0003,2]
[349300535,1737106263927,-500.0,0.0003,2]
[349300536,1737106263937,-500.0,0.0003,2]
[349300537,1737106263946,-497.87452738,0.0003,2]
[349300538,1737106263958,-2.12547262,0.0003,2]
[349300539,1737106263968,-500.0,0.0003,2]
[349300540,1737106263977,-500.0,0.0003,2]
[349300541,1737106263987,-500.0,0.0003,2]
[349300542,1737106263997,-500.0,0.0003,2]
[349300543,1737106264006,-500.0,0.0003,2]
[349300544,1737106264016,-233.83265356,0.0003,2]
[349300545,1737106264028,-266.16734644,0.0003,2]
[349300546,1737106264038,-500.0,0.0003,2]
[349300547,1737106264048,-500.0,0.0003,2]
[349300548,1737106264057,-500.0,0.0003,2]
[349300549,1737106264067,-500.0,0.0003,2]
[349300550,1737106264077,-500.0,0.0003,2]
[349300551,1737106264087,-500.0,0.0003,2]
[349300552,1737106264096,-500.0,0.0003,2]
[349300553,1737106264106,-397.56206277,0.0003,2]
[349300554,1737106264118,-102.43793723,0.0003,2]
[349300555,1737106264128,-500.0,0.0003,2]
[349300556,1737106264138,-153.00786925,0.0003,2]
[349300557,1737106264154,-346.99213075,0.0003,2]
[349300558,1737106264164,-500.0,0.0003,2]
[349300559,1737106264174,-500.0,0.0003,2]
[349300560,1737106264183,-122.69192455,0.0003,2]
[349300561,1737106264198,-377.30807545,0.0003,2]
[349300562,1737106264208,-500.0,0.0003,2]
[349300563,1737106264218,-500.0,0.0003,2]
[349300564,1737106264227,-500.0,0.0003,2]
[349300565,1737106264236,-500.0,0.0003,2]
[349300566,1737106264245,-500.0,0.0003,2]
[349300567,1737106264255,-500.0,0.0003,2]
[349300568,1737106264265,-500.0,0.0003,2]
[349300569,1737106264275,-500.0,0.0003,2]
[349300570,1737106264285,-500.0,0.0003,2]
[349300571,1737106264294,-500.0,0.0003,2]
[349300572,1737106264304,-500.0,0.0003,2]
[349300573,1737106264315,-500.0,0.0003,2]
[349300574,1737106264325,-500.0,0.0003,2]
[349300575,1737106264335,-500.0,0.0003,2]
[349300576,1737106264345,-500.0,0.0003,2]
[349300577,1737106264355,-500.0,0.0003,2]
[349300578,1737106264365,-500.0,0.0003,2]
[349300579,1737106264376,-500.0,0.0003,2]
[349300580,1737106264386,-500.0,0.0003,2]
[349300581,1737106264396,-500.0,0.0003,2]
[349300582,1737106264405,-500.0,0.0003,2]
[349300583,1737106264415,-500.0,0.0003,2]
[349300584,1737106264424,-500.0,0.0003,2]
[349300585,1737106264434,-500.0,0.0003,2]
[349300586,1737106264444,-500.0,0.0003,2]
[349300587,1737106264454,-500.0,0.0003,2]
[349300588,1737106264465,-500.0,0.0003,2]
[349300589,1737106264475,-500.0,0.0003,2]
[349300590,1737106264485,-500.0,0.0003,2]
[349300591,1737106264494,-500.0,0.0003,2]
[349300592,1737106264504,-500.0,0.0003,2]
[349300593,1737106264514,-500.0,0.0003,2]
[349300594,1737106264524,-500.0,0.0003,2]
[349300595,1737106264534,-500.0,0.0003,2]
[349300596,1737106264544,-500.0,0.0003,2]
[349300597,1737106264553,-500.0,0.0003,2]
[349300598,1737106264562,-500.0,0.0003,2]
[349300599,1737106264572,-500.0,0.0003,2]
[349300600,1737106264582,-500.0,0.0003,2]
[349300601,1737106264591,-500.0,0.0003,2]
[349300602,1737106264600,-500.0,0.0003,2]
[349300603,1737106264610,-500.0,0.0003,2]
[349300604,1737106264619,-500.0,0.0003,2]
[349300605,1737106264628,-218.42155405,0.0003,2]
[349300606,1737106264643,-281.57844595,0.0003,2]
[349300607,1737106264654,-500.0,0.0003,2]
[349300608,1737106264770,-500.0,0.0003,2]
[349300609,1737106264781,-500.0,0.0003,2]
[349300610,1737106264791,-500.0,0.0003,2]
[349300611,1737106264801,-500.0,0.0003,2]
[349300612,1737106264810,-500.0,0.0003,2]
[349300613,1737106264819,-500.0,0.0003,2]
[349300614,1737106264830,-500.0,0.0003,2]
[349300615,1737106264841,-500.0,0.0003,2]
[349300616,1737106264851,-500.0,0.0003,2]
[349300617,1737106264861,-500.0,0.0003,2]
[349300618,1737106264871,-500.0,0.0003,2]
[349300619,1737106264881,-500.0,0.0003,2]
[349300620,1737106264891,-500.0,0.0003,2]
[349300621,1737106264903,-500.0,0.0003,2]
[349300622,1737106264912,-500.0,0.0003,2]
[349300623,1737106264922,-500.0,0.0003,2]
[349300624,1737106264932,-500.0,0.0003,2]
[349300625,1737106264941,-500.0,0.0003,2]
[349300626,1737106264952,-500.0,0.0003,2]
[349300627,1737106264961,-500.0,0.0003,2]
[349300628,1737106264970,-500.0,0.0003,2]
[349300629,1737106264979,-500.0,0.0003,2]
[349300630,1737106264989,-500.0,0.0003,2]
[349300631,1737106264998,-500.0,0.0003,2]
[349300632,1737106265008,-500.0,0.0003,2]
[349300633,1737106265018,-500.0,0.0003,2]
[349300634,1737106265028,-500.0,0.0003,2]
[349300635,1737106265038,-500.0,0.0003,2]
[349300636,1737106265047,-500.0,0.0003,2]
[349300637,1737106265057,-500.0,0.0003,2]
[349300638,1737106265066,-500.0,0.0003,2]
[349300639,1737106265076,-500.0,0.0003,2]
[349300640,1737106265086,-500.0,0.0003,2]
[349300641,1737106265095,-500.0,0.0003,2]
[349300642,1737106265105,-500.0,0.0003,2]
[349300643,1737106265114,-500.0,0.0003,2]
[349300644,1737106265124,-500.0,0.0003,2]